[Event "*** Titled Tuesday Blitz"]
[Site "Chess.com"]
[Date "2018.09.04"]
[Round "3"]
[White "335394862"]
[Black "JammyDodger91"]
[Result "0-1"]
[WhiteElo "2322"]
[BlackElo "2402"]
[TimeControl "180+2"]
[EndTime "14:14:50 PDT"]
[Termination "JammyDodger91 won by checkmate"]

1. e4 {[%clk 0:03:01.9]} 1... e5 {[%clk 0:03:00.7]} 2. Nf3 {[%clk 0:03:02.9]}
2... Nc6 {[%clk 0:03:00.2]} 3. Bc4 {[%clk 0:03:04.2]} 3... Nf6 {[%clk
0:03:01.2]} 4. d3 {[%clk 0:03:03.1]} 4... Be7 {[%clk 0:03:01.9]} 5. O-O {[%clk
0:03:03.7]} 5... O-O {[%clk 0:03:02.7]} 6. Re1 {[%clk 0:03:05.2]} 6... d6 {[%clk
0:03:03.3]} 7. h3 {[%clk 0:03:06.2]} 7... Na5 {[%clk 0:03:03.9]} 8. Bb3 {[%clk
0:03:06.7]} 8... Nxb3 {[%clk 0:02:58.7]} 9. axb3 {[%clk 0:03:08.6]} 9... Ne8
{[%clk 0:02:59.3]} 10. d4 {[%clk 0:03:01.1]} 10... exd4 {[%clk 0:02:51.7]} 11.
Nxd4 {[%clk 0:03:03]} 11... Nf6 {[%clk 0:02:46]} 12. Nc3 {[%clk 0:03:03.7]}
12... Re8 {[%clk 0:02:46.1]} 13. Bf4 {[%clk 0:03:03.1]} 13... Bf8 {[%clk
0:02:46.7]} 14. Qd3 {[%clk 0:03:02.2]} 14... a6 {[%clk 0:02:45.6]} 15. Nd5
{[%clk 0:02:52.9]} 15... Nxd5 {[%clk 0:02:33.4]} 16. exd5 {[%clk 0:02:54.8]}
16... g6 {[%clk 0:02:27.7]} 17. c4 {[%clk 0:02:35.9]} 17... Bg7 {[%clk
0:02:26.6]} 18. b4 {[%clk 0:02:35.4]} 18... Bd7 {[%clk 0:02:24.6]} 19. c5 {[%clk
0:02:35]} 19... Qh4 {[%clk 0:02:11.7]} 20. Be3 {[%clk 0:02:23.1]} 20... Qe4
{[%clk 0:02:01.5]} 21. Qxe4 {[%clk 0:02:08.6]} 21... Rxe4 {[%clk 0:02:03.4]} 22.
Red1 {[%clk 0:01:44.6]} 22... Rae8 {[%clk 0:01:59.1]} 23. Rac1 {[%clk
0:01:24.9]} 23... Ba4 {[%clk 0:01:46.9]} 24. Rd2 {[%clk 0:01:18.5]} 24... R4e7
{[%clk 0:00:54.9]} 25. Kh1 {[%clk 0:01:12.8]} 25... h5 {[%clk 0:00:54.3]} 26.
Rc3 {[%clk 0:01:03.1]} 26... Rd8 {[%clk 0:00:47.6]} 27. b3 {[%clk 0:01:03.7]}
27... Be8 {[%clk 0:00:42.1]} 28. Bg5 {[%clk 0:00:39.1]} 28... f6 {[%clk
0:00:23.1]} 29. Be3 {[%clk 0:00:38.2]} 29... dxc5 {[%clk 0:00:24.3]} 30. Rxc5
{[%clk 0:00:39.9]} 30... Bf7 {[%clk 0:00:23.4]} 31. Ne6 {[%clk 0:00:32.7]} 31...
Bxe6 {[%clk 0:00:23.1]} 32. dxe6 {[%clk 0:00:34.5]} 32... Rxd2 {[%clk
0:00:24.2]} 33. Bxd2 {[%clk 0:00:36.4]} 33... c6 {[%clk 0:00:25.8]} 34. Rc4
{[%clk 0:00:29.1]} 34... Rxe6 {[%clk 0:00:27]} 35. Rd4 {[%clk 0:00:30.5]} 35...
Kf7 {[%clk 0:00:28.3]} 36. Rd7+ {[%clk 0:00:27.4]} 36... Re7 {[%clk 0:00:29.5]}
37. Rd8 {[%clk 0:00:28.6]} 37... f5 {[%clk 0:00:29.2]} 38. Bf4 {[%clk
0:00:27.7]} 38... Be5 {[%clk 0:00:22.1]} 39. Bg5 {[%clk 0:00:28.6]} 39... Bf6
{[%clk 0:00:21.8]} 40. Bf4 {[%clk 0:00:29.7]} 40... g5 {[%clk 0:00:22.4]} 41.
Bd6 {[%clk 0:00:28.3]} 41... Re1+ {[%clk 0:00:23.3]} 42. Kh2 {[%clk 0:00:28.8]}
42... Be5+ {[%clk 0:00:25]} 43. Bxe5 {[%clk 0:00:27]} 43... Rxe5 {[%clk
0:00:26.9]} 44. Rh8 {[%clk 0:00:26.6]} 44... h4 {[%clk 0:00:27.7]} 45. Rb8
{[%clk 0:00:26.8]} 45... Re7 {[%clk 0:00:28.3]} 46. g3 {[%clk 0:00:27.9]} 46...
hxg3+ {[%clk 0:00:26.7]} 47. Kxg3 {[%clk 0:00:29.8]} 47... Rd7 {[%clk
0:00:25.8]} 48. Kg2 {[%clk 0:00:27.5]} 48... Kf6 {[%clk 0:00:26.6]} 49. Rf8+
{[%clk 0:00:28.1]} 49... Ke5 {[%clk 0:00:27.6]} 50. Rg8 {[%clk 0:00:28.7]} 50...
Kf4 {[%clk 0:00:29]} 51. Rb8 {[%clk 0:00:24.2]} 51... Ke4 {[%clk 0:00:24.2]} 52.
Rg8 {[%clk 0:00:24.2]} 52... Kf4 {[%clk 0:00:24.1]} 53. Rb8 {[%clk 0:00:25.7]}
53... Rg7 {[%clk 0:00:24]} 54. Kf1 {[%clk 0:00:25.7]} 54... Kf3 {[%clk
0:00:22.5]} 55. Rf8 {[%clk 0:00:26.4]} 55... f4 {[%clk 0:00:23.7]} 56. Rf5
{[%clk 0:00:18.9]} 56... Rd7 {[%clk 0:00:20.9]} 57. Ke1 {[%clk 0:00:17.2]} 57...
Rd5 {[%clk 0:00:21.7]} 58. Rf7 {[%clk 0:00:16.4]} 58... Rb5 {[%clk 0:00:22.7]}
59. Rg7 {[%clk 0:00:16.6]} 59... Kg2 {[%clk 0:00:19.6]} 60. h4 {[%clk 0:00:17]}
60... Re5+ {[%clk 0:00:19.7]} 61. Kd2 {[%clk 0:00:18.4]} 61... Kxf2 {[%clk
0:00:21.1]} 62. hxg5 {[%clk 0:00:19.2]} 62... Rd5+ {[%clk 0:00:22.3]} 63. Kc3
{[%clk 0:00:19.9]} 63... f3 {[%clk 0:00:23.3]} 64. g6 {[%clk 0:00:20.9]} 64...
Rg5 {[%clk 0:00:24]} 65. Rg8 {[%clk 0:00:22.4]} 65... Kg2 {[%clk 0:00:25.4]} 66.
g7 {[%clk 0:00:15.1]} 66... f2 {[%clk 0:00:26.7]} 67. Rf8 {[%clk 0:00:04.8]}
67... Rxg7 {[%clk 0:00:27]} 68. Rf4 {[%clk 0:00:05.4]} 68... f1=Q {[%clk
0:00:27]} 69. Rxf1 {[%clk 0:00:05.7]} 69... Kxf1 {[%clk 0:00:28.9]} 70. b5
{[%clk 0:00:06.1]} 70... axb5 {[%clk 0:00:29.3]} 71. Kb4 {[%clk 0:00:06.4]}
71... b6 {[%clk 0:00:30.8]} 72. Ka3 {[%clk 0:00:07]} 72... Rg4 {[%clk 0:00:32]}
73. b4 {[%clk 0:00:08.9]} 73... Rg3+ {[%clk 0:00:31.3]} 74. Kb2 {[%clk
0:00:08.5]} 74... c5 {[%clk 0:00:32.7]} 75. Ka2 {[%clk 0:00:07.8]} 75... Ke2
{[%clk 0:00:31.7]} 76. Kb2 {[%clk 0:00:08.4]} 76... Kd2 {[%clk 0:00:33.2]} 77.
Ka2 {[%clk 0:00:09.4]} 77... Kc2 {[%clk 0:00:33.3]} 78. bxc5 {[%clk 0:00:10.6]}
78... bxc5 {[%clk 0:00:34.5]} 79. Ka1 {[%clk 0:00:11.4]} 79... Ra3# {[%clk
0:00:36]} 0-1

[Event "*** Titled Tuesday Blitz"]
[Site "Chess.com"]
[Date "2018.09.04"]
[Round "3"]
[White "Haykos"]
[Black "Divertissement"]
[Result "1/2-1/2"]
[WhiteElo "2536"]
[BlackElo "2541"]
[TimeControl "180+2"]
[EndTime "14:15:10 PDT"]
[Termination "Game drawn by repetition"]

1. e4 {[%clk 0:03:01.9]} 1... c5 {[%clk 0:03:01]} 2. Nf3 {[%clk 0:03:02.1]} 2...
d6 {[%clk 0:03:02.2]} 3. Bb5+ {[%clk 0:03:03.3]} 3... Bd7 {[%clk 0:03:00.5]} 4.
Bxd7+ {[%clk 0:03:04.4]} 4... Nxd7 {[%clk 0:03:01.8]} 5. O-O {[%clk 0:03:06.1]}
5... Ngf6 {[%clk 0:03:03]} 6. Re1 {[%clk 0:03:07.4]} 6... e6 {[%clk 0:03:04.2]}
7. c3 {[%clk 0:03:08.9]} 7... Be7 {[%clk 0:03:03.5]} 8. d4 {[%clk 0:03:10.5]}
8... cxd4 {[%clk 0:03:04.9]} 9. cxd4 {[%clk 0:03:12.4]} 9... d5 {[%clk
0:03:06.5]} 10. e5 {[%clk 0:03:13.9]} 10... Ne4 {[%clk 0:03:07.9]} 11. Nbd2
{[%clk 0:03:15.6]} 11... Nxd2 {[%clk 0:03:08.4]} 12. Bxd2 {[%clk 0:03:17.5]}
12... O-O {[%clk 0:03:08.9]} 13. Rc1 {[%clk 0:03:19.4]} 13... Qb6 {[%clk
0:03:05.6]} 14. Bc3 {[%clk 0:03:19.6]} 14... Qa6 {[%clk 0:02:56.4]} 15. a3
{[%clk 0:03:17.2]} 15... f6 {[%clk 0:02:54.7]} 16. exf6 {[%clk 0:03:17.8]} 16...
Bxf6 {[%clk 0:02:56.1]} 17. Qe2 {[%clk 0:03:03.4]} 17... Qxe2 {[%clk 0:02:42.2]}
18. Rxe2 {[%clk 0:03:05.3]} 18... Rfe8 {[%clk 0:02:40.1]} 19. Bb4 {[%clk
0:03:06.3]} 19... a5 {[%clk 0:02:04.2]} 20. Bd6 {[%clk 0:03:06]} 20... Rac8
{[%clk 0:01:59.2]} 21. Rec2 {[%clk 0:03:01.9]} 21... Rxc2 {[%clk 0:01:11.1]} 22.
Rxc2 {[%clk 0:03:03.8]} 22... e5 {[%clk 0:01:12.2]} 23. dxe5 {[%clk 0:01:43.5]}
23... Bxe5 {[%clk 0:01:12.5]} 24. Rc7 {[%clk 0:00:55.6]} 24... Bxd6 {[%clk
0:00:50.4]} 25. Rxd7 {[%clk 0:00:56.3]} 25... Bc5 {[%clk 0:00:46.3]} 26. Rxd5
{[%clk 0:00:56.7]} 26... b6 {[%clk 0:00:44]} 27. Kf1 {[%clk 0:00:53.9]} 27...
Re4 {[%clk 0:00:44.8]} 28. Rd8+ {[%clk 0:00:46.8]} 28... Bf8 {[%clk 0:00:46.2]}
29. Rb8 {[%clk 0:00:44]} 29... Re6 {[%clk 0:00:47.1]} 30. Ng5 {[%clk 0:00:41.3]}
30... Rc6 {[%clk 0:00:46]} 31. Nxh7 {[%clk 0:00:21.5]} 31... Kxh7 {[%clk
0:00:46.7]} 32. Rxf8 {[%clk 0:00:22.5]} 32... Rc1+ {[%clk 0:00:47.1]} 33. Ke2
{[%clk 0:00:23.7]} 33... Rc2+ {[%clk 0:00:48.7]} 34. Ke3 {[%clk 0:00:21.6]}
34... Rxb2 {[%clk 0:00:50.2]} 35. a4 {[%clk 0:00:22.8]} 35... Rb3+ {[%clk
0:00:50.3]} 36. Ke2 {[%clk 0:00:23.5]} 36... Rb2+ {[%clk 0:00:50.3]} 37. Kf3
{[%clk 0:00:24.2]} 37... g5 {[%clk 0:00:32.2]} 38. Rb8 {[%clk 0:00:20.8]} 38...
Rb4 {[%clk 0:00:27.9]} 39. Kg3 {[%clk 0:00:21.1]} 39... Kg6 {[%clk 0:00:27.5]}
40. f3 {[%clk 0:00:21.8]} 40... Kh5 {[%clk 0:00:25.2]} 41. Rh8+ {[%clk
0:00:21.4]} 41... Kg6 {[%clk 0:00:26.3]} 42. Rb8 {[%clk 0:00:23.3]} 42... Kh5
{[%clk 0:00:27.4]} 43. Rb7 {[%clk 0:00:24.7]} 43... Kg6 {[%clk 0:00:28]} 44. Kh3
{[%clk 0:00:26]} 44... Kh5 {[%clk 0:00:24.8]} 45. Rc7 {[%clk 0:00:21.5]} 45...
Rxa4 {[%clk 0:00:20]} 46. g4+ {[%clk 0:00:22]} 46... Kg6 {[%clk 0:00:20.7]} 47.
Rc6+ {[%clk 0:00:23.3]} 47... Kf7 {[%clk 0:00:21.8]} 48. Rxb6 {[%clk 0:00:24.8]}
48... Ra1 {[%clk 0:00:12.9]} 49. Rb5 {[%clk 0:00:22.5]} 49... Kg6 {[%clk
0:00:13.6]} 50. Kg3 {[%clk 0:00:23.4]} 50... a4 {[%clk 0:00:14.4]} 51. Ra5
{[%clk 0:00:24.5]} 51... a3 {[%clk 0:00:15.5]} 52. Ra6+ {[%clk 0:00:20.7]} 52...
Kg7 {[%clk 0:00:16.4]} 53. Kg2 {[%clk 0:00:14.2]} 53... Kf7 {[%clk 0:00:09.9]}
54. h4 {[%clk 0:00:12.7]} 54... gxh4 {[%clk 0:00:10.7]} 55. f4 {[%clk
0:00:13.8]} 55... a2 {[%clk 0:00:10.1]} 56. f5 {[%clk 0:00:13.5]} 56... h3+
{[%clk 0:00:11]} 57. Kh2 {[%clk 0:00:14.6]} 57... Ke7 {[%clk 0:00:08.2]} 58. g5
{[%clk 0:00:15.8]} 58... Rf1 {[%clk 0:00:09.2]} 59. f6+ {[%clk 0:00:16.7]} 59...
Kf7 {[%clk 0:00:10.7]} 60. Rxa2 {[%clk 0:00:17.8]} 60... Rf5 {[%clk 0:00:12.1]}
61. Ra7+ {[%clk 0:00:17.5]} 61... Kf8 {[%clk 0:00:11.3]} 62. Rg7 {[%clk
0:00:19.1]} 62... Rf3 {[%clk 0:00:11.8]} 63. Rh7 {[%clk 0:00:20]} 63... Rf5
{[%clk 0:00:11.8]} 64. Rh5 {[%clk 0:00:21.3]} 64... Kf7 {[%clk 0:00:12.7]} 65.
Kxh3 {[%clk 0:00:22.5]} 65... Rf3+ {[%clk 0:00:13.8]} 66. Kg4 {[%clk 0:00:23.6]}
66... Ra3 {[%clk 0:00:13.7]} 67. Rh7+ {[%clk 0:00:25.1]} 67... Kg8 {[%clk
0:00:14.9]} 68. Rg7+ {[%clk 0:00:26.2]} 68... Kh8 {[%clk 0:00:16.1]} 69. Kf5
{[%clk 0:00:28.1]} 69... Rf3+ {[%clk 0:00:16.5]} 70. Kg4 {[%clk 0:00:23.9]}
70... Rxf6 {[%clk 0:00:12.2]} 71. Rg8+ {[%clk 0:00:03.4]} 71... Kxg8 {[%clk
0:00:13]} 72. gxf6 {[%clk 0:00:05.3]} 72... Kf7 {[%clk 0:00:12.3]} 73. Kf5
{[%clk 0:00:06.4]} 73... Kf8 {[%clk 0:00:13.6]} 74. Kg5 {[%clk 0:00:07.5]} 74...
Kf7 {[%clk 0:00:14.7]} 75. Kf5 {[%clk 0:00:09.1]} 75... Kf8 {[%clk 0:00:15.9]}
76. Ke6 {[%clk 0:00:11]} 76... Ke8 {[%clk 0:00:16.9]} 77. Ke5 {[%clk 0:00:12.5]}
77... Kf7 {[%clk 0:00:17.9]} 78. Kf5 {[%clk 0:00:14.4]} 78... Kf8 {[%clk
0:00:19]} 1/2-1/2

[Event "*** Titled Tuesday Blitz"]
[Site "Chess.com"]
[Date "2018.09.04"]
[Round "3"]
[White "biostatistician"]
[Black "Winehouse83"]
[Result "1/2-1/2"]
[WhiteElo "2482"]
[BlackElo "2472"]
[TimeControl "180+2"]
[EndTime "14:15:15 PDT"]
[Termination "Game drawn by repetition"]

1. e4 {[%clk 0:03:01.8]} 1... e5 {[%clk 0:03:00.1]} 2. Nf3 {[%clk 0:03:02.4]}
2... Nc6 {[%clk 0:03:00.8]} 3. Bb5 {[%clk 0:03:03.6]} 3... a6 {[%clk 0:03:01.3]}
4. Bxc6 {[%clk 0:03:04.9]} 4... dxc6 {[%clk 0:03:02.8]} 5. Nc3 {[%clk
0:03:06.6]} 5... f6 {[%clk 0:02:52.7]} 6. d4 {[%clk 0:03:06.5]} 6... exd4 {[%clk
0:02:43]} 7. Qxd4 {[%clk 0:03:08.4]} 7... Bg4 {[%clk 0:02:36.8]} 8. Be3 {[%clk
0:03:03.4]} 8... Qxd4 {[%clk 0:02:26.4]} 9. Nxd4 {[%clk 0:03:04]} 9... c5 {[%clk
0:02:27.3]} 10. Nb3 {[%clk 0:03:04.3]} 10... b6 {[%clk 0:02:27.8]} 11. f3 {[%clk
0:03:02.6]} 11... Bd7 {[%clk 0:02:27.1]} 12. O-O-O {[%clk 0:03:03.7]} 12...
O-O-O {[%clk 0:02:27.9]} 13. Bf4 {[%clk 0:02:51.9]} 13... Ne7 {[%clk 0:02:23.9]}
14. Bg3 {[%clk 0:02:53.1]} 14... h5 {[%clk 0:02:23.7]} 15. h4 {[%clk 0:02:53.4]}
15... g6 {[%clk 0:02:11.8]} 16. Nd2 {[%clk 0:02:44.7]} 16... Bh6 {[%clk
0:02:12.3]} 17. Kb1 {[%clk 0:02:43.7]} 17... Be6 {[%clk 0:02:03.9]} 18. Nb3
{[%clk 0:02:32.4]} 18... a5 {[%clk 0:02:02.5]} 19. Nb5 {[%clk 0:02:28]} 19... a4
{[%clk 0:01:58.7]} 20. Nc1 {[%clk 0:02:28.9]} 20... Bxc1 {[%clk 0:01:26.4]} 21.
Kxc1 {[%clk 0:01:52.3]} 21... Bxa2 {[%clk 0:01:23.7]} 22. Nc3 {[%clk 0:01:53.2]}
22... Bc4 {[%clk 0:01:11]} 23. Nxa4 {[%clk 0:01:54.2]} 23... Rxd1+ {[%clk
0:01:08.9]} 24. Rxd1 {[%clk 0:01:55]} 24... Rd8 {[%clk 0:01:10.5]} 25. Bf2
{[%clk 0:01:38.8]} 25... Rxd1+ {[%clk 0:01:09.1]} 26. Kxd1 {[%clk 0:01:40.1]}
26... Bf1 {[%clk 0:01:10.5]} 27. g3 {[%clk 0:01:41.4]} 27... Nc6 {[%clk
0:00:59.1]} 28. Nc3 {[%clk 0:01:37]} 28... Ne5 {[%clk 0:00:51.7]} 29. f4 {[%clk
0:01:35]} 29... Ng4 {[%clk 0:00:52.8]} 30. Bg1 {[%clk 0:01:32.7]} 30... c6
{[%clk 0:00:50.2]} 31. Kd2 {[%clk 0:01:31.5]} 31... Kd7 {[%clk 0:00:47.8]} 32.
Nd1 {[%clk 0:01:09.5]} 32... Bg2 {[%clk 0:00:40.5]} 33. Kd3 {[%clk 0:01:08.8]}
33... Bf1+ {[%clk 0:00:37.4]} 34. Kd2 {[%clk 0:01:08.1]} 34... Bg2 {[%clk
0:00:37.9]} 35. Kd3 {[%clk 0:01:08.9]} 35... Kd6 {[%clk 0:00:34.4]} 36. Ne3
{[%clk 0:01:08]} 36... Nxe3 {[%clk 0:00:32.9]} 37. Bxe3 {[%clk 0:01:07.8]} 37...
b5 {[%clk 0:00:33.9]} 38. Bd2 {[%clk 0:01:07.9]} 38... f5 {[%clk 0:00:28.2]} 39.
e5+ {[%clk 0:01:07.6]} 39... Kd5 {[%clk 0:00:29.4]} 40. b3 {[%clk 0:01:01.7]}
40... Be4+ {[%clk 0:00:24]} 41. Kc3 {[%clk 0:01:02]} 41... b4+ {[%clk
0:00:21.4]} 42. Kb2 {[%clk 0:01:03.1]} 42... Ke6 {[%clk 0:00:20.1]} 43. Be3
{[%clk 0:01:04]} 43... Kd5 {[%clk 0:00:21.3]} 44. Bf2 {[%clk 0:01:05.5]} 44...
Bf3 {[%clk 0:00:20.5]} 45. c3 {[%clk 0:01:05]} 45... bxc3+ {[%clk 0:00:21.3]}
46. Kxc3 {[%clk 0:01:06.9]} 46... Be2 {[%clk 0:00:22.6]} 47. Be3 {[%clk
0:01:08.2]} 47... Ba6 {[%clk 0:00:22.4]} 48. Kb2 {[%clk 0:01:08.7]} 48... Bb5
{[%clk 0:00:23.4]} 49. Ka3 {[%clk 0:01:09.8]} 49... c4 {[%clk 0:00:24]} 50.
bxc4+ {[%clk 0:00:58.1]} 50... Bxc4 {[%clk 0:00:25.9]} 51. Kb4 {[%clk
0:00:59.1]} 51... Ba2 {[%clk 0:00:25.8]} 52. Bc5 {[%clk 0:01:00.1]} 52... Ke6
{[%clk 0:00:26.8]} 53. Bf8 {[%clk 0:00:59.5]} 53... Bd5 {[%clk 0:00:27.3]} 54.
Kc5 {[%clk 0:01:00.7]} 54... Kf7 {[%clk 0:00:28.5]} 55. Bd6 {[%clk 0:01:01.4]}
55... Ke6 {[%clk 0:00:29.3]} 56. Bc7 {[%clk 0:01:02.8]} 56... Be4 {[%clk
0:00:28.9]} 57. Bb6 {[%clk 0:01:03.2]} 57... Bd5 {[%clk 0:00:29.9]} 58. Ba5
{[%clk 0:01:04.5]} 58... Be4 {[%clk 0:00:30.8]} 59. Bb4 {[%clk 0:01:06.1]} 59...
Bd5 {[%clk 0:00:30.9]} 60. Kb6 {[%clk 0:01:07.3]} 60... Kf7 {[%clk 0:00:29.5]}
61. Kc7 {[%clk 0:01:08]} 61... Be6 {[%clk 0:00:26.8]} 62. Kxc6 {[%clk
0:01:06.3]} 62... Ba2 {[%clk 0:00:28.2]} 63. Kd7 {[%clk 0:01:06.9]} 63... Be6+
{[%clk 0:00:29.3]} 64. Kd8 {[%clk 0:01:08.3]} 64... Ba2 {[%clk 0:00:30.6]} 65.
Bc5 {[%clk 0:01:05.5]} 65... Be6 {[%clk 0:00:31.4]} 66. Kc7 {[%clk 0:01:06.5]}
66... Bb3 {[%clk 0:00:32.2]} 67. Kd6 {[%clk 0:01:06.8]} 67... Ba2 {[%clk
0:00:33.3]} 68. Kd7 {[%clk 0:00:52.5]} 68... Be6+ {[%clk 0:00:33.5]} 69. Kd8
{[%clk 0:00:53.9]} 69... Bb3 {[%clk 0:00:34.5]} 70. Bb4 {[%clk 0:00:54.4]} 70...
Ba2 {[%clk 0:00:35.6]} 71. Ba3 {[%clk 0:00:55.9]} 71... Bb3 {[%clk 0:00:36.7]}
72. Be7 {[%clk 0:00:57.3]} 72... Ba2 {[%clk 0:00:37.5]} 73. Bf6 {[%clk
0:00:58.9]} 73... Bb3 {[%clk 0:00:38.2]} 74. Kd7 {[%clk 0:01:00.2]} 74... Be6+
{[%clk 0:00:38.8]} 75. Kd6 {[%clk 0:01:01.8]} 75... Ba2 {[%clk 0:00:40.1]} 76.
Bg5 {[%clk 0:01:03.5]} 76... Bb3 {[%clk 0:00:40.8]} 77. Bd8 {[%clk 0:01:05.1]}
77... Ba2 {[%clk 0:00:41.9]} 78. Bb6 {[%clk 0:01:04.9]} 78... Bb3 {[%clk
0:00:42.7]} 79. Kc5 {[%clk 0:01:05.4]} 79... Ba2 {[%clk 0:00:43.9]} 80. Kb4
{[%clk 0:01:06.9]} 80... Be6 {[%clk 0:00:44.5]} 81. Kc3 {[%clk 0:01:08.6]} 81...
Bd5 {[%clk 0:00:45.5]} 82. Kd4 {[%clk 0:01:10.5]} 82... Be6 {[%clk 0:00:46.8]}
83. Kc5 {[%clk 0:01:11.5]} 83... Ba2 {[%clk 0:00:47.6]} 84. Ba5 {[%clk
0:01:12.9]} 84... Be6 {[%clk 0:00:47.7]} 85. Bd2 {[%clk 0:01:14]} 85... Ba2
{[%clk 0:00:48.5]} 86. Kd6 {[%clk 0:01:15.8]} 86... Bb3 {[%clk 0:00:49.5]} 87.
Kd7 {[%clk 0:01:17.5]} 87... Be6+ {[%clk 0:00:50.1]} 88. Kc7 {[%clk 0:01:19.1]}
88... Bb3 {[%clk 0:00:50.4]} 89. Kd8 {[%clk 0:01:21]} 89... Be6 {[%clk
0:00:50.6]} 90. Kc7 {[%clk 0:01:22.3]} 90... Bb3 {[%clk 0:00:51.7]} 91. Kd6
{[%clk 0:01:24.2]} 91... Ba2 {[%clk 0:00:52.5]} 92. Kd7 {[%clk 0:01:24.2]} 92...
Bb3 {[%clk 0:00:52.9]} 93. Kd8 {[%clk 0:01:25.4]} 93... Bc4 {[%clk 0:00:53.3]}
94. Kd7 {[%clk 0:01:27.3]} 94... Bb3 {[%clk 0:00:54.8]} 95. Kd6 {[%clk
0:01:28.9]} 95... Ba2 {[%clk 0:00:56]} 96. Kd7 {[%clk 0:01:30.8]} 96... Bb3
{[%clk 0:00:57.2]} 97. Kd6 {[%clk 0:01:32.3]} 97... Ba2 {[%clk 0:00:58.7]} 98.
Kd7 {[%clk 0:01:33.9]} 98... Bb3 {[%clk 0:00:59.4]} 99. Kd6 {[%clk 0:01:35.8]}
99... Ba2 {[%clk 0:01:00.9]} 100. Kd7 {[%clk 0:01:36.9]} 100... Bb3 {[%clk
0:01:02.4]} 1/2-1/2